bitfinex-derivatives/quotes_SOLF0:USTF0_20250325
["timestamp","ask_amount","ask_price","bid_price","bid_amount"]
[1742922692575,0.05171129,145.46,145.43,0.04574013]
[1742922693168,0.05171129,145.46,145.4,0.06732294]
[1742922693774,6.8762,145.41,145.4,0.06732294]
[1742922697971,6.8767,145.4,145.39,0.05102926]
[1742922700073,0.04992768,145.42,145.39,0.05102926]
[1742922700676,6.8767,145.4,145.39,0.05102926]
[1742922702775,6.8765,145.41,145.39,0.05102926]
[1742922702980,0.04992768,145.42,145.39,0.05102926]
[1742922703483,6.8767,145.4,145.39,0.05102926]
[1742922703981,0.04992768,145.42,145.39,0.05102926]
[1742922704977,0.04992768,145.42,145.4,6.8764]
[1742922705175,0.04992768,145.42,145.39,0.05102926]
[1742922705586,0.04992768,145.42,145.41,6.8762]
[1742922705779,0.04992768,145.42,145.41,27.28]
[1742922706178,0.04992768,145.42,145.41,34.1562]
[1742922706782,0.04992768,145.42,145.41,27.28]
[1742922707181,0.04992768,145.42,145.41,34.16]
[1742922707378,28.4695703,145.53,145.41,27.28]
[1742922707881,6.8733,145.48,145.45,6.8741]
[1742922708486,0.0445166,145.48,145.45,0.04513464]
[1742922708889,6.8739,145.46,145.45,0.04513464]
[1742922709088,0.0445166,145.48,145.45,0.04513464]
[1742922709390,6.8739,145.46,145.45,0.04513464]
[1742922712589,6.8739,145.46,145.45,3.464e-05]
[1742922714786,6.88,145.46,145.31,226.88]
[1742922714988,27.24,145.45,145.37,6.8781]
[1742922715489,27.24,145.45,145.39,6.8771]
[1742922715694,27.24,145.45,145.36,27.26]
[1742922715887,6.8757,145.43,145.36,27.26]
[1742922716094,0.04371027,145.42,145.39,0.05198716]
[1742922716595,6.91961027,145.42,145.39,0.05198716]
[1742922716984,0.04371027,145.42,145.39,0.05198716]
[1742922717189,6.8767,145.4,145.39,0.05198716]
[1742922717386,0.04371027,145.42,145.39,0.05198716]
[1742922717796,6.8767,145.4,145.39,0.05198716]
[1742922720096,0.04371027,145.42,145.39,0.05198716]
[1742922722296,6.8765,145.41,145.39,0.05198716]
[1742922722496,0.04371027,145.42,145.39,0.05198716]
[1742922722699,6.8767,145.4,145.39,0.05198716]
[1742922727706,6.8767,145.4,145.39,8.716e-05]
[1742922729213,6.8764,145.41,145.39,8.716e-05]
[1742922729599,0.04371027,145.42,145.39,8.716e-05]
[1742922729805,6.8767,145.4,145.39,8.716e-05]
[1742922730301,0.04371027,145.42,145.39,8.716e-05]
[1742922731106,6.8767,145.4,145.39,8.716e-05]
[1742922731704,6.8765,145.41,145.39,8.716e-05]
[1742922732000,0.04371027,145.42,145.39,8.716e-05]
[1742922733004,6.8767,145.4,145.39,8.716e-05]
[1742922735210,0.04371027,145.42,145.39,8.716e-05]
[1742922735711,6.8767,145.4,145.39,8.716e-05]
[1742922740515,6.8764,145.41,145.39,8.716e-05]
[1742922740708,0.04371027,145.42,145.39,8.716e-05]
[1742922740913,6.8767,145.4,145.39,8.716e-05]
[1742922749224,6.8795,145.35,145.26,240.7062]
[1742922749417,26.68,145.41,145.3,26.64]
[1742922749822,6.8784,145.37,145.3,26.64]
[1742922750318,6.8784,145.37,145.34,6.8792]
[1742922750513,0.04376976,145.35,145.34,6.8792]
[1742922750721,0.04376976,145.35,145.32,0.05233603]
[1742922750914,0.04376976,145.35,145.33,6.8798]
[1742922751317,0.04376976,145.35,145.34,6.8795]
[1742922751520,28.4695703,145.43,145.34,26.6]
[1742922751922,28.4695703,145.43,145.36,6.8784]
[1742922752122,28.4695703,145.43,145.35,26.62]
[1742922752624,0.04896331,145.4,145.38,0.05248527]
[1742922752925,6.8772,145.39,145.38,0.05248527]
[1742922760727,6.8807,145.32,145.3,6.8811]
[1742922760930,33.2972,145.39,145.29,0.12363033]
[1742922761627,6.8804,145.33,145.29,33.44533033]
[1742922761829,33.2972,145.39,145.29,26.56363033]
[1742922762028,0.04633778,145.32,145.3,0.05260287]
[1742922762326,0.0529303,145.32,145.3,6.8814]
[1742922762526,0.0529303,145.32,145.3,6.93216484]
[1742922765124,0.0529303,145.32,145.3,0.05076484]
[1742922765627,6.881,145.31,145.3,0.05076484]
[1742922768227,6.881,145.31,145.3,6.484e-05]
[1742922774423,6.8814,145.3,145.29,0.12363033]
[1742922774829,10.35264852,145.32,145.26,26.26]
[1742922775029,6.8831,145.27,145.25,26.24]
[1742922775231,6.8831,145.27,145.24,26.24]
[1742922775631,6.93197102,145.27,145.24,26.29067076]
[1742922776126,6.93197102,145.27,145.24,33.17467076]
[1742922776334,6.8834,145.26,145.24,33.17467076]
[1742922776531,6.8834,145.26,145.24,26.29067076]
[1742922777131,6.8838,145.25,145.24,26.29067076]
[1742922778435,6.8836,145.26,145.24,0.05067076]
[1742922778934,6.8836,145.26,145.24,26.21067076]
[1742922779126,6.8838,145.25,145.24,26.21067076]
[1742922779433,0.04887102,145.27,145.24,26.21067076]
[1742922779625,6.8837,145.26,145.24,26.21067076]
[1742922780332,6.8837,145.26,145.24,33.09487076]
[1742922780733,6.8838,145.25,145.24,0.05067076]
[1742922781633,0.04887102,145.27,145.24,0.05067076]
[1742922782135,6.8838,145.26,145.24,0.05067076]
[1742922784232,0.04887102,145.27,145.24,0.05067076]
[1742922784837,0.04887102,145.27,145.26,6.8833]
[1742922785037,0.04887102,145.27,145.26,32.9633]
[1742922786235,38.76928852,145.36,145.26,26.08]
[1742922786738,6.8812,145.31,145.26,26.08]
[1742922786939,38.76928852,145.36,145.26,26.08]
[1742922787141,10.29971822,145.36,145.26,26.08]
[1742922787541,0.04707554,145.32,145.3,0.04971202]
[1742922788141,6.881,145.31,145.3,0.04971202]
[1742922789639,0.04707554,145.32,145.26,26.08]
[1742922789941,0.04707554,145.32,145.27,6.8828]
[1742922790542,0.04707554,145.32,145.28,6.8821]
[1742922790947,0.04707554,145.32,145.29,0.05295558]
[1742922791447,6.8814,145.31,145.29,6.93485558]
[1742922791846,6.8814,145.31,145.29,0.05295558]
[1742922792448,6.92767554,145.32,145.29,0.05295558]
[1742922792646,0.04707554,145.32,145.29,0.05295558]
[1742922792841,6.8812,145.31,145.29,0.05295558]
[1742922793447,0.04707554,145.32,145.29,0.05295558]
[1742922794057,6.8812,145.31,145.29,6.93485558]
[1742922794750,6.8812,145.31,145.29,0.05295558]
[1742922794946,6.8812,145.31,145.29,26.01295558]
[1742922795247,6.8814,145.3,145.29,26.01295558]
[1742922796250,6.8814,145.3,145.29,0.05295558]
[1742922798953,6.8835,145.26,145.24,25.9]
[1742922799343,36.19971822,145.33,145.24,32.7842]
[1742922799551,6.8831,145.27,145.24,32.7842]
[1742922799852,36.19971822,145.33,145.24,32.7842]
[1742922800053,6.93078955,145.27,145.24,32.83258058]
[1742922800241,6.8833,145.27,145.24,32.7842]
[1742922800441,6.8833,145.27,145.24,32.83046119]
[1742922800442,6.93193546,145.27,145.24,32.83046119]
[1742922801143,6.8835,145.26,145.24,32.83046119]
[1742922801350,6.8835,145.26,145.24,0.04626119]
[1742922801550,6.8835,145.26,145.24,25.90626119]
[1742922804257,6.8838,145.25,145.24,25.90626119]
[1742922805254,6.8838,145.25,145.24,0.04626119]
[1742922807560,6.8838,145.25,145.24,6.119e-05]
[1742922809454,6.8862,145.2,145.19,25.82]
[1742922810359,6.886,145.21,145.19,25.82]
[1742922810657,6.93447312,145.21,145.18,25.86981077]
[1742922810857,6.93447312,145.21,145.18,32.75691077]
[1742922812957,6.93437312,145.21,145.18,32.75691077]
[1742922813461,6.93437312,145.21,145.19,6.8866]
[1742922813760,0.04847312,145.21,145.19,6.8866]
[1742922814160,0.04847312,145.21,145.2,6.8862]
[1742922818261,25.84,145.29,145.25,6.8838]
[1742922818862,25.84,145.29,145.23,25.84]
[1742922819164,6.8835,145.26,145.24,6.884]
[1742922819463,0.05172803,145.26,145.24,0.0445511]
[1742922819665,6.8838,145.25,145.24,0.0445511]
[1742922820164,6.93532803,145.26,145.24,6.9286511]
[1742922821166,6.93532803,145.26,145.24,0.0445511]
[1742922821464,6.8838,145.25,145.24,0.0445511]
[1742922832183,6.93532803,145.26,145.24,6.9288511]
[1742922832483,0.05172803,145.26,145.24,0.0445511]
[1742922833581,6.8838,145.25,145.24,0.0445511]
[1742922836680,0.05172803,145.26,145.24,0.0445511]
[1742922837777,0.05172803,145.26,145.25,6.8838]
[1742922845891,0.05172803,145.26,145.24,0.0445511]
[1742922846485,6.8838,145.25,145.24,0.0445511]
[1742922850890,10.35144625,145.26,145.14,0.22708912]
[1742922851094,25.82,145.25,145.14,0.22708912]
[1742922851295,10.29971822,145.24,145.15,25.82]
[1742922851492,10.29971822,145.24,145.14,0.22708912]
[1742922851693,10.29971822,145.24,145.15,25.82]
[1742922851898,6.8874,145.18,145.15,32.7083]
[1742922852294,6.93395293,145.18,145.15,32.76094469]
[1742922852986,0.04655293,145.18,145.16,6.8881]
[1742922854800,6.93395293,145.18,145.15,32.76114469]
[1742922854991,6.93395293,145.18,145.15,25.87264469]
[1742922855700,6.93395293,145.18,145.15,0.05264469]
[1742922855893,6.93395293,145.18,145.15,25.87264469]
[1742922856897,6.8878,145.17,145.15,25.87264469]
[1742922857095,0.04655293,145.18,145.15,25.87264469]
[1742922857302,0.04655293,145.18,145.15,0.05264469]
[1742922857704,6.8879,145.17,145.15,0.05264469]
[1742922858300,0.04655293,145.18,145.15,0.05264469]
[1742922858301,6.8881,145.16,145.15,0.05264469]
[1742922858798,6.8878,145.17,145.15,0.05264469]
[1742922859203,0.04655293,145.18,145.15,0.05264469]
[1742922859398,6.8881,145.16,145.15,0.05264469]
[1742922860902,0.04655293,145.18,145.15,0.05264469]
[1742922861497,6.8879,145.17,145.15,0.05264469]
[1742922861702,0.04655293,145.18,145.15,0.05264469]
[1742922862405,6.8876,145.17,145.15,6.94114469]
[1742922863703,6.8876,145.17,145.15,0.05264469]
[1742922864605,6.8881,145.17,145.15,0.05264469]
[1742922865410,6.8881,145.16,145.15,0.05264469]
[1742922875910,10.34627115,145.18,144.81,6.888]
[1742922876114,10.29971822,145.2,145.06,25.82]
[1742922876506,6.8889,145.15,145.11,6.89]
[1742922876812,6.8889,145.15,145.12,25.82]
[1742922877113,6.94146079,145.15,145.12,25.86860361]
[1742922878611,6.8891,145.14,145.12,25.86860361]
[1742922878810,0.05256079,145.15,145.12,25.86860361]
[1742922879306,0.05256079,145.15,145.13,6.889]
[1742922879907,286.72559651,145.25,145.12,25.86860361]
[1742922880108,272.95779651,145.25,145.12,25.82]
[1742922880312,45.75779651,145.25,145.12,25.82]
[1742922880512,6.886,145.21,145.17,6.8872]
[1742922880711,6.886,145.21,145.18,25.82]
[1742922881218,0.04903193,145.21,145.18,32.75168227]
[1742922881917,6.93473193,145.21,145.18,32.75168227]
[1742922882313,0.04903193,145.21,145.18,32.75168227]
[1742922882514,0.04903193,145.21,145.19,6.8866]
[1742922883615,0.04903193,145.21,145.2,6.8862]
[1742922884115,0.04903193,145.21,145.18,25.86468227]
[1742922884818,0.04903193,145.21,145.2,6.8862]
[1742922888429,0.04903193,145.21,145.19,6.8865]
[1742922888623,0.04903193,145.21,145.18,25.86468227]
[1742922889521,0.04903193,145.21,145.2,6.8862]
[1742922899339,10.29971822,145.3,145.24,6.8838]
[1742922899642,6.883,145.27,145.24,6.8838]
[1742922900241,6.8827,145.28,145.25,6.8836]
[1742922900439,6.8827,145.28,145.23,25.8]
[1742922900640,6.92734673,145.28,145.25,0.05214527]
[1742922900945,6.92734673,145.28,145.25,6.93574527]
[1742922901545,6.8833,145.26,145.25,0.05214527]
[1742922902447,6.8855,145.22,145.2,25.8]
[1742922903545,6.93518032,145.22,145.2,25.84677578]
[1742922903945,6.8857,145.21,145.2,0.04677578]
[1742922906349,6.93508032,145.22,145.2,0.04677578]
[1742922906844,6.8857,145.21,145.2,0.04677578]
[1742922907048,0.04968032,145.22,145.2,0.04677578]
[1742922907246,6.93538032,145.22,145.2,0.04677578]
[1742922907445,0.04968032,145.22,145.2,0.04677578]
[1742922908546,0.04968032,145.22,145.21,6.8857]
[1742922908747,25.8,145.31,145.2,0.04677578]
[1742922908948,25.8,145.31,145.19,25.8]
[1742922909249,6.8826,145.28,145.25,6.8836]
[1742922909449,6.8826,145.28,145.25,32.6836]
[1742922909952,0.04536257,145.28,145.27,6.8829]
[1742922910152,0.04536257,145.28,145.25,25.84424375]
[1742922910353,6.257e-05,145.28,145.25,25.84424375]
[1742922910554,6.257e-05,145.28,145.27,6.8829]
[1742922912649,6.257e-05,145.28,145.25,25.84424375]
[1742922912855,6.257e-05,145.28,145.25,0.04424375]
[1742922913244,6.8833,145.26,145.25,0.04424375]
[1742922913447,6.257e-05,145.28,145.25,0.04424375]
[1742922913853,6.8833,145.26,145.25,0.04424375]
[1742922914749,6.257e-05,145.28,145.25,0.04424375]
[1742922915144,6.257e-05,145.28,145.25,6.92764375]
[1742922916154,6.257e-05,145.28,145.25,0.04424375]
[1742922917658,6.257e-05,145.28,145.25,6.92794375]
[1742922917854,6.257e-05,145.28,145.25,0.04424375]
[1742922918854,6.88246257,145.28,145.25,0.04424375]
[1742922919054,6.257e-05,145.28,145.25,0.04424375]
[1742922921061,6.8833,145.26,145.25,0.04424375]
[1742922922359,6.257e-05,145.28,145.25,0.04424375]
[1742922922360,6.88286257,145.28,145.25,0.04424375]
[1742922922560,6.257e-05,145.28,145.25,0.04424375]
[1742922923062,6.257e-05,145.28,145.27,6.8829]
[1742922926265,104.38842445,145.35,145.27,6.88]
[1742922926466,104.38842445,145.35,145.28,25.78]
[1742922926968,104.38842445,145.35,145.32,6.8802]
[1742922927168,104.38842445,145.35,145.33,25.78]
[1742922927368,6.8787,145.36,145.33,25.78]
[1742922927570,0.04851267,145.35,145.33,25.82565472]
[1742922927773,0.04851267,145.35,145.33,32.70565472]
[1742922928266,0.04851267,145.35,145.33,25.82565472]
[1742922928761,6.92781267,145.35,145.33,25.82565472]
[1742922929873,0.04851267,145.35,145.33,25.82565472]
[1742922931075,0.04851267,145.35,145.33,32.70555472]
[1742922931476,0.04851267,145.35,145.33,25.82565472]
[1742922933565,0.04851267,145.35,145.34,6.8795]
[1742922933771,28.4695703,145.45,145.33,25.82565472]
[1742922934065,28.4695703,145.45,145.33,25.78]
[1742922934272,54.2495703,145.45,145.33,25.78]
[1742922934668,6.8778,145.38,145.35,6.8788]
[1742922934871,0.04887449,145.4,145.35,6.8788]
[1742922935075,0.04887449,145.4,145.35,6.92824834]
[1742922935376,6.8777,145.38,145.35,6.92824834]
[1742922935777,6.8773,145.39,145.35,6.92824834]
[1742922935979,0.04887449,145.4,145.35,6.92824834]
[1742922936178,0.04887449,145.4,145.35,0.04944834]
[1742922936381,6.878,145.38,145.35,0.04944834]
[1742922936676,0.04887449,145.4,145.35,6.92854834]
[1742922936878,6.8783,145.37,145.35,0.04944834]
[1742922937177,0.04887449,145.4,145.35,0.04944834]
[1742922937377,6.8783,145.37,145.35,0.04944834]
[1742922940976,0.04887449,145.4,145.35,0.04944834]
[1742922942985,6.878,145.38,145.35,6.92844834]
[1742922943985,0.04887449,145.4,145.35,0.04944834]
[1742922944582,0.04887449,145.4,145.39,6.8772]
[1742922944789,0.04887449,145.4,145.39,32.6372]
[1742922946585,28.4695703,145.48,145.39,32.6372]
[1742922946886,6.8767,145.4,145.39,25.76]
[1742922947282,10.30120284,145.45,145.31,360.0]
[1742922947487,6.8783,145.37,145.32,25.76]
[1742922947983,10.30120284,145.43,145.33,0.05097439]
[1742922947984,6.92489775,145.36,145.33,0.05097439]
[1742922948188,0.04629775,145.36,145.34,25.76]
[1742922948378,0.0481377,145.36,145.34,25.76]
[1742922948581,0.0481377,145.36,145.33,0.04341891]
[1742922948986,6.8793,145.35,145.33,0.04341891]
[1742922950083,6.8795,145.34,145.33,0.04341891]
[1742922950283,0.0481377,145.36,145.33,0.04341891]
[1742922950581,6.8793,145.35,145.33,0.04341891]
[1742922950994,0.0481377,145.36,145.33,0.04341891]
[1742922951884,0.0481377,145.36,145.34,6.8793]
[1742922952084,0.0481377,145.36,145.35,25.76]
[1742922952288,0.0481377,145.36,145.35,32.6391]
[1742922952483,54.2295703,145.46,145.35,25.76]
[1742922953394,67.9781703,145.46,145.35,25.76]
[1742922953693,6.8784,145.37,145.35,25.76]
[1742922954189,6.92377221,145.37,145.35,25.81081618]
[1742922954894,6.8786,145.36,145.35,25.81081618]
[1742922955081,0.04537221,145.37,145.35,25.81081618]
[1742922955595,6.92377221,145.37,145.35,25.81081618]
[1742922957482,6.8786,145.36,145.35,25.81081618]
[1742922957882,0.04537221,145.37,145.35,25.81081618]
[1742922958087,6.92377221,145.37,145.35,25.81081618]
[1742922958493,0.04537221,145.37,145.35,25.81081618]
[1742922958992,6.8786,145.36,145.35,25.81081618]
[1742922961093,6.8786,145.36,145.35,0.05081618]
[1742922961493,6.88,145.36,145.25,25.76]
[1742922961690,16.0987897,145.35,145.2,236.47841608]
[1742922961994,16.0987897,145.35,145.22,6.8852]
[1742922962189,16.0987897,145.33,145.23,25.76]
[1742922962390,25.76,145.32,145.23,25.76]
[1742922962595,25.76,145.32,145.27,0.0469165]
[1742922962790,0.04534589,145.29,145.27,25.8069165]
[1742922962985,25.76,145.36,145.27,25.76]
[1742922963190,29.8570897,145.35,145.2,265.03366432]
[1742922963386,0.04404727,145.29,145.27,0.04621328]
[1742922963690,25.76,145.32,145.27,0.04621328]
[1742922963891,0.04493742,145.29,145.27,0.04621328]
[1742922964394,6.8824,145.28,145.27,0.04621328]
[1742922968000,0.04493742,145.29,145.27,0.04621328]
[1742922968889,0.04493742,145.29,145.28,6.8824]
[1742922970693,0.04493742,145.29,145.27,6.92891328]
[1742922970900,0.04493742,145.29,145.27,0.04621328]
[1742922971497,0.04493742,145.29,145.28,6.8824]
[1742922972401,271.52836,145.42,145.33,6.88]
[1742922972705,6.8789,145.36,145.32,25.76]
[1742922972999,6.8789,145.36,145.32,32.6402]
[1742922973304,6.8785,145.37,145.32,25.76]
[1742922973499,0.04391264,145.35,145.33,0.04944465]
[1742922973700,25.76,145.4,145.33,0.04944465]
[1742922973901,6.93174158,145.35,145.33,0.04944465]
[1742922974096,25.76,145.4,145.33,6.92944465]
[1742922974406,25.76,145.41,145.33,0.04944465]
[1742922974598,6.879,145.36,145.32,25.76]
[1742922974799,6.879,145.36,145.32,32.6404]
[1742922975000,6.879,145.36,145.33,0.04873137]
[1742922975205,0.04577097,145.38,145.33,0.04873137]
[1742922977502,6.879,145.36,145.33,0.04873137]
[1742922978707,6.8792,145.35,145.33,0.04873137]
[1742922979107,0.04577097,145.38,145.33,6.92863137]
[1742922979308,6.8791,145.35,145.33,0.04873137]
[1742922979608,0.04577097,145.38,145.33,0.04873137]
[1742922979908,6.879,145.36,145.33,0.04873137]
[1742922980110,0.04577097,145.38,145.33,0.04873137]
[1742922980505,6.8795,145.35,145.33,0.04873137]
[1742922981203,6.8789,145.36,145.33,0.04873137]
[1742922981403,0.04577097,145.38,145.33,0.04873137]
[1742922981908,6.8795,145.34,145.33,0.04873137]
[1742922985012,0.05248109,145.35,145.33,0.04873137]
[1742922985510,6.8795,145.34,145.33,0.04873137]
[1742922986811,0.05248109,145.35,145.26,25.76]
[1742922987012,25.76,145.36,145.26,32.6431]
[1742922987313,6.8817,145.3,145.26,32.6431]
[1742922987512,25.76,145.36,145.26,32.6431]
[1742922987513,41.8587897,145.36,145.26,25.76]
[1742922987715,6.8839,145.25,145.19,228.21770784]
[1742922987911,20.6334,145.38,145.22,25.76]
[1742922987912,25.81046677,145.32,145.22,25.76]
[1742922988109,25.76,145.32,145.22,25.76]
[1742922989014,6.8834,145.26,145.23,6.8845]
[1742922989406,6.8834,145.26,145.23,6.93274051]
[1742922989715,6.8834,145.26,145.23,0.04824051]
[1742922990307,0.05102477,145.28,145.23,25.80824051]
[1742922990514,0.05102477,145.28,145.23,0.04824051]
[1742922990813,6.8843,145.24,145.23,0.04824051]
[1742922991007,25.81102477,145.28,145.18,25.76]
[1742922991008,25.76,145.28,145.18,25.76]
[1742922991402,6.8859,145.21,145.18,32.647]
[1742922992009,25.76,145.28,145.19,6.8865]
[1742922992208,0.04927446,145.21,145.19,6.8865]
[1742922992402,25.76,145.28,145.18,25.76]
[1742922992602,0.04573377,145.21,145.19,0.04697697]
[1742922992802,0.05290167,145.21,145.13,227.04]
[1742922993006,0.05290167,145.21,145.19,0.05187673]
[1742922993209,0.05290167,145.21,145.19,25.76]
[1742922993406,0.05290167,145.21,145.19,25.81081565]
[1742922994407,0.05290167,145.21,145.19,0.05081565]
[1742922995313,0.05290167,145.21,145.19,6.93721565]
[1742922995510,6.93860167,145.21,145.19,0.05081565]
[1742922996613,0.05290167,145.21,145.19,0.05081565]
[1742922997111,6.93870167,145.21,145.19,0.05081565]
[1742922997316,0.05290167,145.21,145.19,0.05081565]
[1742922997614,6.93880167,145.21,145.19,0.05081565]
[1742922997813,0.05290167,145.21,145.19,0.05081565]
[1742922999617,6.93860167,145.21,145.19,0.05081565]
[1742922999916,0.05290167,145.21,145.19,0.05081565]
[1742923000310,6.93860167,145.21,145.19,0.05081565]
[1742923000512,28.4695703,145.32,145.19,0.05081565]
[1742923000712,45.77702091,145.33,145.17,25.76]
[1742923001016,45.77702091,145.33,145.23,6.8845]
[1742923001211,45.77702091,145.33,145.24,25.76]
[1742923001807,0.05011316,145.3,145.27,0.04970979]
[1742923002215,6.8824,145.28,145.27,0.04970979]
[1742923004114,6.8838,145.25,145.24,25.76]
[1742923004316,25.76,145.29,145.21,25.76]
[1742923004817,6.8843,145.24,145.21,25.76]
[1742923005021,6.8843,145.24,145.21,32.6456]
[1742923005220,6.8848,145.23,145.21,25.80495213]
[1742923005420,0.05025038,145.24,145.21,25.80495213]
[1742923006123,6.8852,145.22,145.21,25.80495213]
[1742923006621,0.05025038,145.24,145.21,25.80495213]
[1742923006816,6.8852,145.22,145.21,25.80495213]
[1742923009126,6.885,145.23,145.21,25.80495213]
[1742923009919,6.8852,145.22,145.21,25.80495213]
[1742923010424,6.8852,145.22,145.21,0.04495213]
[1742923011022,6.8849,145.23,145.21,0.04495213]
[1742923011225,0.05025038,145.24,145.21,0.04495213]
[1742923011429,6.8852,145.22,145.21,0.04495213]
[1742923012526,6.8849,145.23,145.21,0.04495213]
[1742923013326,6.8852,145.22,145.21,0.04495213]
[1742923017025,6.885,145.23,145.21,0.04495213]
[1742923017327,0.05025038,145.24,145.21,6.93025213]
[1742923017825,6.93485038,145.24,145.21,6.93025213]
[1742923018229,6.8849,145.23,145.21,0.04495213]
[1742923018528,0.05025038,145.24,145.21,0.04495213]
[1742923018927,6.8852,145.22,145.21,0.04495213]
[1742923020430,6.8874,145.18,145.16,6.8878]
[1742923020628,6.8874,145.18,145.16,32.6478]
[1742923020830,6.8874,145.18,145.16,25.76]
[1742923021332,6.8874,145.18,145.15,6.8883]
[1742923021532,6.8876,145.17,145.16,25.76]
[1742923022027,0.04362396,145.18,145.16,25.76]
[1742923022226,39.5279,145.25,145.16,25.76]
[1742923022531,39.5279,145.25,145.17,6.8876]
[1742923022732,6.886,145.21,145.19,0.04446845]
[1742923023033,0.04735435,145.22,145.19,0.04446845]
[1742923023332,6.8858,145.21,145.19,0.04446845]
[1742923023825,0.04735435,145.22,145.19,0.04446845]
[1742923024031,0.04735435,145.22,145.2,25.76]
[1742923024428,0.04735435,145.22,145.21,6.8857]
[1742923024626,0.04735435,145.22,145.2,25.76]
[1742923025131,0.04735435,145.22,145.2,32.646]
[1742923025732,0.04735435,145.22,145.2,25.76]
[1742923026430,0.04735435,145.22,145.19,0.04446845]
[1742923026627,6.8862,145.2,145.19,0.04446845]
[1742923028728,25.80735435,145.22,145.07,38.07366432]
[1742923028928,41.8587897,145.22,145.08,25.76]
[1742923029122,41.8587897,145.22,145.06,360.0]
[1742923029333,41.8587897,145.22,145.11,6.8902]
[1742923029531,41.8587897,145.22,145.11,25.76]
[1742923029738,6.8886,145.15,145.11,25.76]
[1742923030034,41.8587897,145.22,145.11,25.76]
[1742923030234,6.8896,145.13,145.12,0.04592736]
[1742923030428,13.7715,145.21,145.1,25.76]
[1742923030624,0.04987439,145.14,145.11,0.04755018]
[1742923030829,25.76,145.22,145.14,6.8887]
[1742923031033,0.05265523,145.19,145.14,32.6487]
[1742923031338,0.05265523,145.19,145.17,0.04770706]
[1742923031638,6.8871,145.18,145.17,0.04770706]
[1742923032139,6.8871,145.18,145.17,7.06e-06]
[1742923035730,6.89,145.12,145.11,25.76]
[1742923036135,13.773,145.2,145.05,227.2]
[1742923036341,13.773,145.2,145.06,25.76]
[1742923036640,6.8894,145.14,145.1,6.8908]
[1742923036841,0.0464423,145.14,145.12,0.04671974]
[1742923037841,6.9356423,145.14,145.12,0.04671974]
[1742923038633,0.0464423,145.14,145.12,0.04671974]
[1742923039040,6.9356423,145.14,145.12,0.04671974]
[1742923039240,0.0464423,145.14,145.12,0.04671974]
[1742923039642,0.0464423,145.14,145.12,6.93641974]
[1742923040343,6.9355423,145.14,145.12,0.04671974]
[1742923040535,0.0464423,145.14,145.12,0.04671974]
[1742923041042,6.8895,145.13,145.12,0.04671974]
[1742923042042,6.9356423,145.14,145.12,0.04671974]
[1742923042439,0.0464423,145.14,145.12,0.04671974]
[1742923042637,6.8895,145.13,145.12,0.04671974]
[1742923044350,6.8913,145.1,145.08,25.76]
[1742923044845,6.8907,145.11,145.08,32.6516]
[1742923045545,6.94236047,145.11,145.08,32.6961706]
[1742923046343,6.8911,145.1,145.08,25.8045706]
[1742923046843,6.8911,145.1,145.08,32.6964706]
[1742923047346,6.8911,145.1,145.08,25.8045706]
[1742923048151,6.8911,145.1,145.08,0.0445706]
[1742923048345,6.8914,145.09,145.08,0.0445706]
[1742923051649,0.05166047,145.11,145.08,0.0445706]
[1742923052252,6.8914,145.09,145.08,0.0445706]
[1742923053053,0.05166047,145.11,145.04,25.76]
[1742923053247,25.76,145.13,145.03,25.76]
[1742923053446,6.8924,145.07,145.03,25.76]
[1742923053648,25.76,145.13,144.99,227.32]
[1742923053856,41.8587897,145.13,145.0,25.76]
[1742923054050,0.04726276,145.07,144.95,0.41725614]
[1742923054356,41.8587897,145.09,144.96,25.76]
[1742923055153,41.8587897,145.09,144.95,0.41725614]
[1742923055456,0.04865132,145.04,145.01,0.05208781]
[1742923055645,6.8947,145.02,145.01,0.05208781]
[1742923059353,0.04865132,145.04,144.95,0.41725614]
[1742923059354,0.04865132,145.04,144.96,25.76]
[1742923059552,25.76,145.06,144.96,25.76]
[1742923059752,25.76,145.06,144.98,6.8966]
[1742923060159,29.8824897,145.09,144.96,25.76]
[1742923060359,6.895,145.02,144.99,6.896]
[1742923060560,6.895,145.02,145.01,0.02530796]
[1742923061757,0.04447439,145.04,145.01,0.02530796]
[1742923062461,0.04447439,145.04,145.02,6.8945]
[1742923062857,0.04447439,145.04,145.01,0.02530796]